[Event "Titled Tuesday Blitz July 4 Late 2023"]
[White "Ardila, Oscar Humberto"]
[Black "Reprintsev, Alexander"]
[WhiteFideId "4404742"]
[BlackFideId "14100541"]
[WhiteElo "2304"]
[BlackElo "2492"]
[Result "1-0"]
[Round "3"]
[TimeControl "180+2"]
[Date "2023.07.04"]
[WhiteClock "0:00:48"]
[BlackClock "0:00:00"]
[Board "144"]

1. d4 {[%clk 0:02:59]}  d5 {[%clk 0:01:16]} 2. c4 {[%clk 0:02:58]}  e5 {[%clk 0:01:15]} 3. dxe5 {[%clk 0:02:58]}  d4 {[%clk 0:01:15]} 4. Nf3 {[%clk 0:02:57]}  Nc6 {[%clk 0:01:16]} 5. g3 {[%clk 0:02:55]}  Nge7 {[%clk 0:01:15]} 6. Bg2 {[%clk 0:02:55]}  Ng6 {[%clk 0:01:15]} 7. O-O {[%clk 0:02:55]}  Ngxe5 {[%clk 0:01:15]} 8. Nxe5 {[%clk 0:02:55]}  Nxe5 {[%clk 0:01:15]} 9. Nd2 {[%clk 0:02:55]}  Be7 {[%clk 0:01:14]} 10. Nf3 {[%clk 0:02:55]}  Nxf3+ {[%clk 0:01:13]} 11. Bxf3 {[%clk 0:02:55]}  Bh3 {[%clk 0:01:13]} 12. Re1 {[%clk 0:02:54]}  c6 {[%clk 0:01:13]} 13. b3 {[%clk 0:02:52]}  O-O {[%clk 0:01:12]} 14. Bb2 {[%clk 0:02:52]}  Bf6 {[%clk 0:01:12]} 15. Qd2 {[%clk 0:02:51]}  Qb6 {[%clk 0:00:44]} 16. Rad1 {[%clk 0:02:48]}  Rad8 {[%clk 0:00:39]} 17. Qf4 {[%clk 0:02:40]}  Qa5 {[%clk 0:00:32]} 18. a4 {[%clk 0:02:29]}  Bg5 {[%clk 0:00:26]} 19. b4 {[%clk 0:02:10]}  Qxb4 {[%clk 0:00:16]} 20. Qxg5 {[%clk 0:02:07]}  Qxb2 {[%clk 0:00:16]} 21. g4 {[%clk 0:02:07]}  f5 {[%clk 0:00:15]} 22. gxf5 {[%clk 0:02:00]}  Bxf5 {[%clk 0:00:14]} 23. Kh1 {[%clk 0:01:52]}  Bg6 {[%clk 0:00:12]} 24. Rg1 {[%clk 0:01:50]}  Qb4 {[%clk 0:00:12]} 25. Rb1 {[%clk 0:01:48]}  Qxb1 {[%clk 0:00:10]} 26. Rxb1 {[%clk 0:01:46]}  Bxb1 {[%clk 0:00:11]} 27. Qc1 {[%clk 0:01:34]}  Bg6 {[%clk 0:00:10]} 28. Qb2 {[%clk 0:01:33]}  Rd7 {[%clk 0:00:10]} 29. Bg4 {[%clk 0:01:24]}  Rdd8 {[%clk 0:00:05]} 30. Qxb7 {[%clk 0:01:20]}  Rxf2 {[%clk 0:00:05]} 31. Kg1 {[%clk 0:01:17]}  Rf4 {[%clk 0:00:04]} 32. Bf3 {[%clk 0:01:15]}  Rxf3 {[%clk 0:00:04]} 33. exf3 {[%clk 0:01:14]}  d3 {[%clk 0:00:05]} 34. Qc7 {[%clk 0:01:09]}  Re8 {[%clk 0:00:04]} 35. Qxc6 {[%clk 0:01:02]}  h6 {[%clk 0:00:04]} 36. Qd5+ {[%clk 0:01:01]}  Kh7 {[%clk 0:00:04]} 37. c5 {[%clk 0:01:00]}  Re1+ {[%clk 0:00:04]} 38. Kf2 {[%clk 0:01:00]}  Re2+ {[%clk 0:00:04]} 39. Kg3 {[%clk 0:01:00]}  Rc2 {[%clk 0:00:05]} 40. c6 {[%clk 0:00:56]}  d2 {[%clk 0:00:05]} 41. c7 {[%clk 0:00:56]}  Rxc7 {[%clk 0:00:03]} 42. Qxd2 {[%clk 0:00:56]}  Rc4 {[%clk 0:00:03]} 43. a5 {[%clk 0:00:55]}  a6 {[%clk 0:00:04]} 44. Qd5 {[%clk 0:00:51]}  Ra4 {[%clk 0:00:02]} 45. Qc5 {[%clk 0:00:48]}  Ra1 {[%clk 0:00:00]} 46. h4 {[%clk 0:00:48]} 1-0


[Site "https://www.chess.com"]

[Event "Titled Tuesday Blitz July 4 Late 2023"]
[White "Han, Yichen"]
[Black "Saucey, Michel"]
[WhiteFideId "1054430"]
[BlackFideId "601845"]
[WhiteElo "2470"]
[BlackElo "2274"]
[Result "1-0"]
[Round "3"]
[TimeControl "180+2"]
[Date "2023.07.04"]
[WhiteClock "0:02:10"]
[BlackClock "0:00:00"]
[Board "145"]

1. d4 {[%clk 0:03:00]}  d5 {[%clk 0:02:58]} 2. Nf3 {[%clk 0:03:01]}  e6 {[%clk 0:02:58]} 3. c4 {[%clk 0:03:01]}  Nf6 {[%clk 0:02:57]} 4. Nc3 {[%clk 0:03:02]}  Bb4 {[%clk 0:02:56]} 5. Qb3 {[%clk 0:03:02]}  c5 {[%clk 0:02:49]} 6. dxc5 {[%clk 0:03:02]}  Nc6 {[%clk 0:02:46]} 7. Bg5 {[%clk 0:03:02]}  h6 {[%clk 0:01:49]} 8. Bxf6 {[%clk 0:03:02]}  Qxf6 {[%clk 0:01:48]} 9. cxd5 {[%clk 0:03:01]}  exd5 {[%clk 0:01:48]} 10. e3 {[%clk 0:03:01]}  Be6 {[%clk 0:01:44]} 11. Bb5 {[%clk 0:02:58]}  O-O {[%clk 0:01:38]} 12. Bxc6 {[%clk 0:02:52]}  Bxc3+ {[%clk 0:01:37]} 13. Qxc3 {[%clk 0:02:53]}  Qxc3+ {[%clk 0:01:37]} 14. bxc3 {[%clk 0:02:53]}  bxc6 {[%clk 0:01:36]} 15. Nd4 {[%clk 0:02:54]}  Bd7 {[%clk 0:01:36]} 16. Kd2 {[%clk 0:02:52]}  Rab8 {[%clk 0:01:32]} 17. Rab1 {[%clk 0:02:52]}  g6 {[%clk 0:01:22]} 18. Kd3 {[%clk 0:02:51]}  Kg7 {[%clk 0:01:21]} 19. c4 {[%clk 0:02:51]}  dxc4+ {[%clk 0:01:20]} 20. Kxc4 {[%clk 0:02:52]}  Kf6 {[%clk 0:01:19]} 21. a4 {[%clk 0:02:46]}  Rfc8 {[%clk 0:01:12]} 22. a5 {[%clk 0:02:41]}  Be6+ {[%clk 0:01:10]} 23. Nxe6 {[%clk 0:02:41]}  Kxe6 {[%clk 0:01:10]} 24. Rhd1 {[%clk 0:02:35]}  g5 {[%clk 0:00:58]} 25. Rxb8 {[%clk 0:02:34]}  Rxb8 {[%clk 0:00:58]} 26. Rd6+ {[%clk 0:02:34]}  Ke7 {[%clk 0:00:58]} 27. Rxc6 {[%clk 0:02:35]}  Rb2 {[%clk 0:00:58]} 28. Rc7+ {[%clk 0:02:35]}  Ke6 {[%clk 0:00:58]} 29. Rxa7 {[%clk 0:02:35]}  Rxf2 {[%clk 0:00:58]} 30. Ra6+ {[%clk 0:02:30]}  Ke7 {[%clk 0:00:54]} 31. Rxh6 {[%clk 0:02:30]}  Rxg2 {[%clk 0:00:53]} 32. a6 {[%clk 0:02:31]}  Ra2 {[%clk 0:00:52]} 33. Kb5 {[%clk 0:02:30]}  f5 {[%clk 0:00:49]} 34. Kb6 {[%clk 0:02:28]}  Rb2+ {[%clk 0:00:47]} 35. Kc7 {[%clk 0:02:28]}  Ra2 {[%clk 0:00:47]} 36. c6 {[%clk 0:02:18]}  f4 {[%clk 0:00:27]} 37. exf4 {[%clk 0:02:18]}  gxf4 {[%clk 0:00:27]} 38. Rh4 {[%clk 0:02:19]}  f3 {[%clk 0:00:24]} 39. Rf4 {[%clk 0:02:16]}  f2 {[%clk 0:00:24]} 40. h4 {[%clk 0:02:10]}  Ke6 {[%clk 0:00:17]} 41. h5 {[%clk 0:02:09]}  Ke5 {[%clk 0:00:08]} 42. Rf8 {[%clk 0:02:10]}  Ke4 {[%clk 0:00:05]} 43. h6 {[%clk 0:02:10]}  Ke3 {[%clk 0:00:00]} 44. h7 {[%clk 0:02:10]} 1-0


[Site "https://www.chess.com"]

[Event "Titled Tuesday Blitz July 4 Late 2023"]
[White "Luong Phuong Hanh"]
[Black "SicilianPanzer"]
[WhiteFideId "12401013"]
[WhiteElo "2456"]
[BlackElo "2241"]
[Result "1-0"]
[Round "3"]
[TimeControl "180+2"]
[Date "2023.07.04"]
[WhiteClock "0:01:27"]
[BlackClock "0:01:37"]
[Board "147"]

1. d4 {[%clk 0:03:00]}  Nf6 {[%clk 0:02:59]} 2. Nf3 {[%clk 0:02:40]}  c5 {[%clk 0:02:57]} 3. d5 {[%clk 0:02:10]}  e6 {[%clk 0:02:57]} 4. Nc3 {[%clk 0:02:04]}  exd5 {[%clk 0:02:55]} 5. Nxd5 {[%clk 0:02:02]}  Nxd5 {[%clk 0:02:55]} 6. Qxd5 {[%clk 0:01:59]}  Be7 {[%clk 0:02:55]} 7. e4 {[%clk 0:01:55]}  O-O {[%clk 0:02:52]} 8. Bc4 {[%clk 0:01:54]}  d6 {[%clk 0:02:52]} 9. Qd1 {[%clk 0:01:53]}  Nc6 {[%clk 0:02:30]} 10. O-O {[%clk 0:01:52]}  Be6 {[%clk 0:02:13]} 11. Be2 {[%clk 0:01:32]}  d5 {[%clk 0:02:12]} 12. exd5 {[%clk 0:01:30]}  Bxd5 {[%clk 0:02:11]} 13. c3 {[%clk 0:01:30]}  Bf6 {[%clk 0:02:08]} 14. Be3 {[%clk 0:01:30]}  Qa5 {[%clk 0:01:37]} 15. Qxd5 {[%clk 0:01:27]} 1-0


[Site "https://www.chess.com"]

[Event "Titled Tuesday Blitz July 4 Late 2023"]
[White "Kukavica, Tony"]
[Black "Skvortsov, Andrei"]
[WhiteFideId "2062542"]
[BlackFideId "24108600"]
[WhiteElo "2303"]
[BlackElo "2642"]
[Result "0-1"]
[Round "3"]
[TimeControl "180+2"]
[Date "2023.07.04"]
[WhiteClock "0:00:01"]
[BlackClock "0:00:28"]
[Board "150"]

1. Nf3 {[%clk 0:02:59]}  g6 {[%clk 0:02:59]} 2. d4 {[%clk 0:02:59]}  Bg7 {[%clk 0:03:00]} 3. e4 {[%clk 0:02:59]}  a6 {[%clk 0:02:59]} 4. a4 {[%clk 0:02:58]}  e6 {[%clk 0:02:58]} 5. c3 {[%clk 0:02:58]}  d5 {[%clk 0:02:57]} 6. exd5 {[%clk 0:02:57]}  exd5 {[%clk 0:02:57]} 7. Bd3 {[%clk 0:02:56]}  Nc6 {[%clk 0:02:56]} 8. h3 {[%clk 0:02:55]}  Nge7 {[%clk 0:02:55]} 9. O-O {[%clk 0:02:55]}  Bf5 {[%clk 0:02:56]} 10. Be3 {[%clk 0:02:54]}  Bxd3 {[%clk 0:02:55]} 11. Qxd3 {[%clk 0:02:54]}  O-O {[%clk 0:02:56]} 12. Qd2 {[%clk 0:02:54]}  Nf5 {[%clk 0:02:55]} 13. Bg5 {[%clk 0:02:54]}  Qd7 {[%clk 0:02:55]} 14. Qf4 {[%clk 0:02:44]}  Rfe8 {[%clk 0:02:53]} 15. g4 {[%clk 0:02:35]}  Nd6 {[%clk 0:02:50]} 16. Bh6 {[%clk 0:02:32]}  Re4 {[%clk 0:02:45]} 17. Qc1 {[%clk 0:02:27]}  Bh8 {[%clk 0:02:41]} 18. Nbd2 {[%clk 0:02:21]}  Ree8 {[%clk 0:02:34]} 19. Re1 {[%clk 0:02:16]}  Rxe1+ {[%clk 0:02:33]} 20. Qxe1 {[%clk 0:02:15]}  Re8 {[%clk 0:02:33]} 21. Qf1 {[%clk 0:02:15]}  Ne4 {[%clk 0:02:23]} 22. Re1 {[%clk 0:02:10]}  Nxd2 {[%clk 0:02:19]} 23. Nxd2 {[%clk 0:02:09]}  Rxe1 {[%clk 0:02:16]} 24. Qxe1 {[%clk 0:02:09]}  Bg7 {[%clk 0:02:15]} 25. Bxg7 {[%clk 0:02:04]}  Kxg7 {[%clk 0:02:16]} 26. Nf3 {[%clk 0:02:04]}  f6 {[%clk 0:02:14]} 27. Kg2 {[%clk 0:01:55]}  Nd8 {[%clk 0:02:09]} 28. g5 {[%clk 0:01:55]}  Nf7 {[%clk 0:02:06]} 29. gxf6+ {[%clk 0:01:52]}  Kxf6 {[%clk 0:02:06]} 30. Ne5 {[%clk 0:01:49]}  Nxe5 {[%clk 0:01:47]} 31. Qxe5+ {[%clk 0:01:47]}  Kf7 {[%clk 0:01:46]} 32. a5 {[%clk 0:01:44]}  Qe7 {[%clk 0:01:42]} 33. Qf4+ {[%clk 0:01:38]}  Kg7 {[%clk 0:01:42]} 34. Qg4 {[%clk 0:00:53]}  c6 {[%clk 0:01:37]} 35. Qf4 {[%clk 0:00:52]}  h6 {[%clk 0:01:34]} 36. b4 {[%clk 0:00:52]}  Qd7 {[%clk 0:01:30]} 37. Qe5+ {[%clk 0:00:49]}  Kh7 {[%clk 0:01:30]} 38. Qf6 {[%clk 0:00:48]}  h5 {[%clk 0:01:30]} 39. h4 {[%clk 0:00:46]}  Qc7 {[%clk 0:01:20]} 40. f4 {[%clk 0:00:44]}  Qd7 {[%clk 0:01:17]} 41. Kf2 {[%clk 0:00:42]}  Qe8 {[%clk 0:01:14]} 42. Qe5 {[%clk 0:00:37]}  Qf7 {[%clk 0:01:12]} 43. Kf3 {[%clk 0:00:35]}  Qd7 {[%clk 0:00:52]} 44. Qg5 {[%clk 0:00:32]}  Kg7 {[%clk 0:00:50]} 45. Kg3 {[%clk 0:00:31]}  Kf7 {[%clk 0:00:50]} 46. Qe5 {[%clk 0:00:30]}  Qg4+ {[%clk 0:00:49]} 47. Kf2 {[%clk 0:00:29]}  Qxh4+ {[%clk 0:00:49]} 48. Kf3 {[%clk 0:00:25]}  Qe7 {[%clk 0:00:47]} 49. Qb8 {[%clk 0:00:20]}  Kg7 {[%clk 0:00:43]} 50. Qe5+ {[%clk 0:00:16]}  Qf6 {[%clk 0:00:43]} 51. Qc7+ {[%clk 0:00:15]}  Qf7 {[%clk 0:00:43]} 52. Qe5+ {[%clk 0:00:15]}  Kh7 {[%clk 0:00:44]} 53. Kg3 {[%clk 0:00:14]}  Qd7 {[%clk 0:00:44]} 54. Qg5 {[%clk 0:00:12]}  Qe6 {[%clk 0:00:39]} 55. Qe5 {[%clk 0:00:11]}  Qf7 {[%clk 0:00:39]} 56. Qb8 {[%clk 0:00:11]}  g5 {[%clk 0:00:34]} 57. fxg5 {[%clk 0:00:08]}  Kg6 {[%clk 0:00:35]} 58. Qe5 {[%clk 0:00:05]}  Qf5 {[%clk 0:00:33]} 59. Qc7 {[%clk 0:00:04]}  Qxg5+ {[%clk 0:00:31]} 60. Kh2 {[%clk 0:00:04]}  Qd2+ {[%clk 0:00:27]} 61. Kg1 {[%clk 0:00:03]}  Qe3+ {[%clk 0:00:26]} 62. Kh2 {[%clk 0:00:02]}  Qf2+ {[%clk 0:00:26]} 63. Kh1 {[%clk 0:00:03]}  Qf7 {[%clk 0:00:27]} 64. Qd6+ {[%clk 0:00:03]}  Kf5 {[%clk 0:00:26]} 65. Qe5+ {[%clk 0:00:03]}  Kg4 {[%clk 0:00:25]} 66. Qe2+ {[%clk 0:00:03]}  Qf3+ {[%clk 0:00:25]} 67. Qxf3+ {[%clk 0:00:03]}  Kxf3 {[%clk 0:00:26]} 68. Kh2 {[%clk 0:00:04]}  Ke3 {[%clk 0:00:26]} 69. c4 {[%clk 0:00:04]}  dxc4 {[%clk 0:00:26]} 70. b5 {[%clk 0:00:03]}  axb5 {[%clk 0:00:27]} 71. d5 {[%clk 0:00:02]}  cxd5 {[%clk 0:00:27]} 72. a6 {[%clk 0:00:01]}  bxa6 {[%clk 0:00:28]} 0-1


[Site "https://www.chess.com"]

[Event "Titled Tuesday Blitz July 4 Late 2023"]
[White "Freile Martin, Javier"]
[Black "Thomforde-Toates, Noah"]
[WhiteFideId "3600165"]
[BlackFideId "30951992"]
[WhiteElo "2294"]
[BlackElo "2632"]
[Result "0-1"]
[Round "3"]
[TimeControl "180+2"]
[Date "2023.07.04"]
[WhiteClock "0:01:41"]
[BlackClock "0:02:32"]
[Board "152"]

1. c4 {[%clk 0:03:00]}  Nf6 {[%clk 0:02:58]} 2. Nc3 {[%clk 0:02:59]}  g6 {[%clk 0:02:58]} 3. d4 {[%clk 0:02:58]}  d6 {[%clk 0:02:59]} 4. e4 {[%clk 0:02:58]}  Bg7 {[%clk 0:02:59]} 5. Be2 {[%clk 0:02:57]}  O-O {[%clk 0:03:00]} 6. Nf3 {[%clk 0:02:57]}  e5 {[%clk 0:03:00]} 7. O-O {[%clk 0:02:57]}  exd4 {[%clk 0:03:00]} 8. Nxd4 {[%clk 0:02:56]}  Re8 {[%clk 0:03:00]} 9. f3 {[%clk 0:02:56]}  c6 {[%clk 0:03:00]} 10. Kh1 {[%clk 0:02:52]}  Nbd7 {[%clk 0:02:53]} 11. Bg5 {[%clk 0:02:48]}  Qb6 {[%clk 0:02:53]} 12. Nb3 {[%clk 0:02:46]}  a5 {[%clk 0:02:52]} 13. Na4 {[%clk 0:02:09]}  Qb4 {[%clk 0:02:44]} 14. Nc1 {[%clk 0:01:56]}  Nc5 {[%clk 0:02:36]} 15. Nxc5 {[%clk 0:01:50]}  Qxc5 {[%clk 0:02:34]} 16. Nb3 {[%clk 0:01:41]}  Qxg5 {[%clk 0:02:32]} 0-1


[Site "https://www.chess.com"]

[Event "Titled Tuesday Blitz July 4 Late 2023"]
[White "Vlassov, Nikolai"]
[Black "Alexikov, Alexander"]
[WhiteFideId "4103360"]
[BlackFideId "14103958"]
[WhiteElo "2571"]
[BlackElo "2293"]
[Result "1-0"]
[Round "3"]
[TimeControl "180+2"]
[Date "2023.07.04"]
[WhiteClock "0:00:11"]
[BlackClock "0:00:00"]
[Board "153"]

1. e4 {[%clk 0:03:00]}  c5 {[%clk 0:02:57]} 2. c3 {[%clk 0:03:00]}  Nf6 {[%clk 0:02:54]} 3. e5 {[%clk 0:03:01]}  Nd5 {[%clk 0:02:53]} 4. d4 {[%clk 0:03:01]}  cxd4 {[%clk 0:02:52]} 5. cxd4 {[%clk 0:03:02]}  d6 {[%clk 0:02:51]} 6. Bc4 {[%clk 0:03:01]}  Nb6 {[%clk 0:02:50]} 7. Bb3 {[%clk 0:03:01]}  dxe5 {[%clk 0:02:47]} 8. Qh5 {[%clk 0:03:00]}  e6 {[%clk 0:02:44]} 9. dxe5 {[%clk 0:03:00]}  Nc6 {[%clk 0:02:42]} 10. Nc3 {[%clk 0:02:59]}  g6 {[%clk 0:02:33]} 11. Qg5 {[%clk 0:02:59]}  Qxg5 {[%clk 0:02:30]} 12. Bxg5 {[%clk 0:02:58]}  Bg7 {[%clk 0:02:30]} 13. Bf6 {[%clk 0:02:58]}  O-O {[%clk 0:02:21]} 14. Nf3 {[%clk 0:02:56]}  Nd7 {[%clk 0:02:12]} 15. Bxg7 {[%clk 0:02:56]}  Kxg7 {[%clk 0:02:11]} 16. O-O-O {[%clk 0:02:56]}  Ndxe5 {[%clk 0:02:10]} 17. Nxe5 {[%clk 0:02:57]}  Nxe5 {[%clk 0:02:09]} 18. Rhe1 {[%clk 0:02:57]}  Nc6 {[%clk 0:02:01]} 19. Rd6 {[%clk 0:02:49]}  Kf6 {[%clk 0:01:45]} 20. Nd5+ {[%clk 0:02:39]}  Kg7 {[%clk 0:01:44]} 21. Nc7 {[%clk 0:02:32]}  Rb8 {[%clk 0:01:43]} 22. Red1 {[%clk 0:02:22]}  a6 {[%clk 0:01:19]} 23. Ba4 {[%clk 0:02:14]}  b5 {[%clk 0:01:12]} 24. Rxc6 {[%clk 0:01:45]}  bxa4 {[%clk 0:01:11]} 25. Nxa6 {[%clk 0:01:42]}  Bxa6 {[%clk 0:00:54]} 26. Rxa6 {[%clk 0:01:41]}  Rfc8+ {[%clk 0:00:53]} 27. Kb1 {[%clk 0:01:40]}  Rc4 {[%clk 0:00:53]} 28. Ra7 {[%clk 0:01:25]}  Rcb4 {[%clk 0:00:47]} 29. Rd2 {[%clk 0:01:23]}  h5 {[%clk 0:00:44]} 30. a3 {[%clk 0:01:21]}  Rf4 {[%clk 0:00:42]} 31. f3 {[%clk 0:01:20]}  h4 {[%clk 0:00:41]} 32. h3 {[%clk 0:01:17]}  Rb5 {[%clk 0:00:39]} 33. Rad7 {[%clk 0:01:08]}  g5 {[%clk 0:00:37]} 34. R7d4 {[%clk 0:01:05]}  Rxd4 {[%clk 0:00:30]} 35. Rxd4 {[%clk 0:01:04]}  Ra5 {[%clk 0:00:30]} 36. f4 {[%clk 0:00:56]}  Kg6 {[%clk 0:00:19]} 37. Kc2 {[%clk 0:00:47]}  e5 {[%clk 0:00:15]} 38. fxe5 {[%clk 0:00:45]}  Kf5 {[%clk 0:00:15]} 39. Rg4 {[%clk 0:00:25]}  Rxe5 {[%clk 0:00:13]} 40. Kc3 {[%clk 0:00:24]}  Ra5 {[%clk 0:00:12]} 41. Kb4 {[%clk 0:00:20]}  Ra7 {[%clk 0:00:11]} 42. Kb5 {[%clk 0:00:19]}  Rb7+ {[%clk 0:00:09]} 43. Kxa4 {[%clk 0:00:19]}  Rxb2 {[%clk 0:00:09]} 44. Ka5 {[%clk 0:00:19]}  Ra2 {[%clk 0:00:07]} 45. a4 {[%clk 0:00:19]}  Kg6 {[%clk 0:00:06]} 46. Kb5 {[%clk 0:00:16]}  f5 {[%clk 0:00:06]} 47. Rb4 {[%clk 0:00:15]}  Kh5 {[%clk 0:00:06]} 48. a5 {[%clk 0:00:15]}  g4 {[%clk 0:00:05]} 49. a6 {[%clk 0:00:13]}  g3 {[%clk 0:00:04]} 50. Ra4 {[%clk 0:00:12]}  Rb2+ {[%clk 0:00:03]} 51. Kc6 {[%clk 0:00:11]}  Rb8 {[%clk 0:00:00]} 52. a7 {[%clk 0:00:11]} 1-0


[Site "https://www.chess.com"]

[Event "Titled Tuesday Blitz July 4 Late 2023"]
[White "Vaglio Munoz, Jaime"]
[Black "Palencia Morales, Wilson Guillermo"]
[WhiteFideId "6500145"]
[BlackFideId "4401859"]
[WhiteElo "2287"]
[BlackElo "2555"]
[Result "1-0"]
[Round "3"]
[TimeControl "180+2"]
[Date "2023.07.04"]
[WhiteClock "0:00:59"]
[BlackClock "0:00:00"]
[Board "154"]

1. Nf3 {[%clk 0:03:00]}  c5 {[%clk 0:02:58]} 2. c4 {[%clk 0:03:00]}  g6 {[%clk 0:02:54]} 3. b3 {[%clk 0:03:00]}  Bg7 {[%clk 0:02:55]} 4. Nc3 {[%clk 0:03:00]}  Nf6 {[%clk 0:02:54]} 5. Bb2 {[%clk 0:02:59]}  O-O {[%clk 0:02:54]} 6. g3 {[%clk 0:02:59]}  Ne4 {[%clk 0:02:49]} 7. Rc1 {[%clk 0:02:56]}  Nf6 {[%clk 0:02:44]} 8. Bg2 {[%clk 0:02:55]}  Nc6 {[%clk 0:02:45]} 9. O-O {[%clk 0:02:54]}  d6 {[%clk 0:02:42]} 10. e3 {[%clk 0:02:53]}  Bg4 {[%clk 0:02:41]} 11. h3 {[%clk 0:02:53]}  Bd7 {[%clk 0:02:39]} 12. d4 {[%clk 0:02:51]}  Rc8 {[%clk 0:02:38]} 13. d5 {[%clk 0:02:50]}  Na5 {[%clk 0:02:38]} 14. Rc2 {[%clk 0:02:47]}  a6 {[%clk 0:02:32]} 15. e4 {[%clk 0:02:43]}  b5 {[%clk 0:02:31]} 16. Nd2 {[%clk 0:02:07]}  Rb8 {[%clk 0:02:25]} 17. Ba1 {[%clk 0:02:06]}  Qc8 {[%clk 0:02:22]} 18. Kh2 {[%clk 0:02:05]}  e6 {[%clk 0:02:22]} 19. f4 {[%clk 0:02:04]}  exd5 {[%clk 0:02:22]} 20. e5 {[%clk 0:01:52]}  dxe5 {[%clk 0:02:14]} 21. fxe5 {[%clk 0:01:53]}  Nh5 {[%clk 0:02:14]} 22. Nxd5 {[%clk 0:01:53]}  Re8 {[%clk 0:02:06]} 23. Nf3 {[%clk 0:01:48]}  bxc4 {[%clk 0:02:04]} 24. bxc4 {[%clk 0:01:47]}  Ba4 {[%clk 0:02:04]} 25. Qd2 {[%clk 0:01:46]}  Bxc2 {[%clk 0:02:04]} 26. Qxc2 {[%clk 0:01:38]}  Qf5 {[%clk 0:01:21]} 27. Qa4 {[%clk 0:01:25]}  Nb7 {[%clk 0:01:01]} 28. g4 {[%clk 0:01:22]}  Qd3 {[%clk 0:00:54]} 29. gxh5 {[%clk 0:01:19]}  Re6 {[%clk 0:00:45]} 30. Qd7 {[%clk 0:01:11]}  Qxc4 {[%clk 0:00:26]} 31. Ng5 {[%clk 0:01:05]}  Nd8 {[%clk 0:00:12]} 32. Nxe6 {[%clk 0:01:00]}  Nxe6 {[%clk 0:00:00]} 33. Qxf7+ {[%clk 0:00:59]} 1-0


[Site "https://www.chess.com"]

[Event "Titled Tuesday Blitz July 4 Late 2023"]
[White "Francisco Guecamburu, Candela Be"]
[Black "Zampronha, Wladimir Camilo"]
[WhiteFideId "160911"]
[BlackFideId "2103087"]
[WhiteElo "2522"]
[BlackElo "2282"]
[Result "1-0"]
[Round "3"]
[TimeControl "180+2"]
[Date "2023.07.04"]
[WhiteClock "0:01:42"]
[BlackClock "0:01:51"]
[Board "156"]

1. e4 {[%clk 0:03:00]}  c5 {[%clk 0:02:58]} 2. Nf3 {[%clk 0:03:01]}  e6 {[%clk 0:02:59]} 3. d4 {[%clk 0:02:59]}  cxd4 {[%clk 0:03:00]} 4. Nxd4 {[%clk 0:03:00]}  Nc6 {[%clk 0:02:59]} 5. Nf3 {[%clk 0:02:59]}  d6 {[%clk 0:02:56]} 6. Bd3 {[%clk 0:02:59]}  Nf6 {[%clk 0:02:56]} 7. O-O {[%clk 0:03:00]}  g6 {[%clk 0:02:53]} 8. Qe2 {[%clk 0:03:00]}  Bg7 {[%clk 0:02:54]} 9. Rd1 {[%clk 0:03:01]}  Qc7 {[%clk 0:02:51]} 10. c4 {[%clk 0:02:54]}  O-O {[%clk 0:02:50]} 11. Nc3 {[%clk 0:02:55]}  a6 {[%clk 0:02:50]} 12. Bc2 {[%clk 0:02:46]}  Ne5 {[%clk 0:02:45]} 13. Nxe5 {[%clk 0:02:38]}  dxe5 {[%clk 0:02:46]} 14. b3 {[%clk 0:02:38]}  b5 {[%clk 0:02:46]} 15. Ba3 {[%clk 0:02:36]}  Re8 {[%clk 0:02:44]} 16. Bd6 {[%clk 0:02:35]}  Qb7 {[%clk 0:02:34]} 17. Bxe5 {[%clk 0:02:29]}  b4 {[%clk 0:02:34]} 18. Na4 {[%clk 0:02:27]}  Nd7 {[%clk 0:02:14]} 19. Bxg7 {[%clk 0:02:27]}  Kxg7 {[%clk 0:02:15]} 20. Rd6 {[%clk 0:02:20]}  Ne5 {[%clk 0:02:10]} 21. f4 {[%clk 0:02:18]}  Nc6 {[%clk 0:02:07]} 22. Rad1 {[%clk 0:02:17]}  Ne7 {[%clk 0:01:59]} 23. Qd2 {[%clk 0:02:10]}  Rb8 {[%clk 0:01:56]} 24. Qd4+ {[%clk 0:02:06]}  Kg8 {[%clk 0:01:56]} 25. Nc5 {[%clk 0:01:46]}  Qa7 {[%clk 0:01:55]} 26. Nxe6 {[%clk 0:01:42]}  Bxe6 {[%clk 0:01:51]} 27. Qxa7 {[%clk 0:01:42]} 1-0


[Site "https://www.chess.com"]

[Event "Titled Tuesday Blitz July 4 Late 2023"]
[White "Deng, Henry"]
[Black "Antonio, Jorge Carlos"]
[WhiteFideId "30965454"]
[BlackFideId "113190"]
[WhiteElo "2494"]
[BlackElo "2280"]
[Result "0-1"]
[Round "3"]
[TimeControl "180+2"]
[Date "2023.07.04"]
[WhiteClock "0:00:44"]
[BlackClock "0:01:39"]
[Board "158"]

1. e4 {[%clk 0:03:00]}  c5 {[%clk 0:02:59]} 2. Nc3 {[%clk 0:03:00]}  e6 {[%clk 0:02:57]} 3. d4 {[%clk 0:02:57]}  cxd4 {[%clk 0:02:57]} 4. Qxd4 {[%clk 0:02:58]}  Nc6 {[%clk 0:02:53]} 5. Qe3 {[%clk 0:02:59]}  Nf6 {[%clk 0:02:50]} 6. Nf3 {[%clk 0:02:58]}  Bb4 {[%clk 0:02:49]} 7. Bd2 {[%clk 0:02:57]}  d6 {[%clk 0:02:46]} 8. O-O-O {[%clk 0:02:55]}  O-O {[%clk 0:02:43]} 9. a3 {[%clk 0:02:55]}  Ba5 {[%clk 0:02:42]} 10. h3 {[%clk 0:02:50]}  Bb6 {[%clk 0:02:42]} 11. Qe1 {[%clk 0:02:47]}  e5 {[%clk 0:02:39]} 12. Bg5 {[%clk 0:02:45]}  Ba5 {[%clk 0:02:34]} 13. b4 {[%clk 0:02:39]}  Nxb4 {[%clk 0:02:29]} 14. axb4 {[%clk 0:02:36]}  Bxb4 {[%clk 0:02:30]} 15. Bd2 {[%clk 0:02:33]}  Qa5 {[%clk 0:02:26]} 16. Nb1 {[%clk 0:02:30]}  Ba3+ {[%clk 0:02:23]} 17. Nxa3 {[%clk 0:02:29]}  Qxa3+ {[%clk 0:02:21]} 18. Kb1 {[%clk 0:02:30]}  Be6 {[%clk 0:02:16]} 19. c4 {[%clk 0:02:23]}  Qb3+ {[%clk 0:02:10]} 20. Ka1 {[%clk 0:02:22]}  b5 {[%clk 0:01:58]} 21. Bc3 {[%clk 0:01:53]}  Qa3+ {[%clk 0:01:56]} 22. Kb1 {[%clk 0:01:53]}  bxc4 {[%clk 0:01:52]} 23. Kc2 {[%clk 0:01:23]}  Rab8 {[%clk 0:01:45]} 24. Ra1 {[%clk 0:01:19]}  Qb3+ {[%clk 0:01:44]} 25. Kc1 {[%clk 0:00:44]}  Nxe4 {[%clk 0:01:39]} 0-1


[Site "https://www.chess.com"]